bitfinex-derivatives/quotes_ETHF0:USTF0_20260221
["timestamp","ask_amount","ask_price","bid_price","bid_amount"]
[1771647393860,0.56160893,1959.2,1958.2,0.60337522]
[1771647394856,0.56160893,1959.2,1958.2,0.60853731]
[1771647406775,0.56160893,1959.2,1958.2,0.58589568]
[1771647409882,0.56138499,1958.9,1958.2,0.58589568]
[1771647411583,0.56138499,1958.9,1958.3,0.58073359]
[1771647420188,5.74138198,1958.8,1958.3,0.58073359]
[1771647420488,0.56138499,1958.8,1958.3,0.58073359]
[1771647439812,6.50260364,1959.0,1958.3,0.58073359]
[1771647440107,0.56278728,1958.8,1958.3,0.58073359]
[1771647442012,4.83330273,1959.0,1958.5,0.58870692]
[1771647442211,5.74583766,1958.9,1958.5,0.58870692]
[1771647442516,0.56278728,1959.1,1958.7,0.58870692]
[1771647443811,0.56278728,1959.1,1958.5,0.58870692]
[1771647444215,0.56278728,1959.3,1958.7,0.58870692]
[1771647444412,6.30427437,1959.2,1958.9,0.58870692]
[1771647444610,0.56278728,1959.2,1958.9,0.58870692]
[1771647446017,0.56278728,1959.2,1958.7,0.58870692]
[1771647464034,0.59465457,1959.0,1958.5,0.56247699]
[1771647464235,0.59465457,1959.0,1958.3,0.56247699]
[1771647466238,0.59465457,1959.0,1958.3,2.2317779]
[1771647466442,2.26395548,1959.2,1958.4,0.56247699]
[1771647466642,0.59465457,1959.1,1958.4,0.56247699]
[1771647479146,5.77775948,1959.0,1958.4,0.56247699]
[1771647479352,0.59465457,1959.0,1958.4,0.56247699]
[1771647482454,0.59465457,1959.0,1958.3,0.56247699]
[1771647482655,0.59465457,1958.8,1958.3,0.56247699]
[1771647483152,0.59465457,1959.1,1958.3,0.56247699]
[1771647483356,5.77717019,1959.0,1958.3,0.56247699]
[1771647483559,0.59465457,1959.1,1958.3,0.56247699]
[1771647483757,5.77718228,1959.0,1958.3,0.56247699]
[1771647483953,0.59465457,1959.1,1958.3,0.56247699]
[1771647484152,5.77728897,1959.0,1958.3,0.56247699]
[1771647484353,0.59465457,1959.1,1958.3,0.56247699]
[1771647484656,5.77751638,1959.0,1958.3,0.56247699]
[1771647484858,0.59465457,1959.1,1958.3,0.56247699]
[1771647485056,5.77751685,1959.0,1958.3,0.56247699]
[1771647485257,0.59465457,1959.1,1958.3,0.56247699]
[1771647485457,5.77778089,1959.0,1958.3,0.56247699]
[1771647485657,0.59465457,1959.1,1958.3,0.56247699]
[1771647485858,4.26234532,1959.3,1958.3,0.56247699]
[1771647485859,6.37243593,1959.0,1958.3,0.56247699]
[1771647486157,0.59465457,1959.0,1958.3,0.56247699]
[1771647497465,0.60224609,1958.8,1958.3,0.56247699]
[1771647507271,0.60224609,1958.8,1958.2,0.60477564]
[1771647507473,0.60224609,1958.6,1957.7,8.02643677]
[1771647507672,0.60224609,1958.6,1958.0,0.59961355]
[1771647508576,0.60224609,1958.6,1958.0,0.60456869]
[1771647523080,0.60224609,1958.6,1958.0,0.00495514]
[1771647524888,0.55064802,1958.4,1957.8,0.56119002]
[1771647525187,0.55064802,1958.4,1957.6,0.56119002]
[1771647525685,0.55064802,1958.2,1957.5,0.56119002]
[1771647525988,5.76247754,1958.1,1957.5,0.00600287]
[1771647526185,0.55064802,1958.0,1957.5,0.00600287]
[1771647526391,0.55064802,1957.8,1956.8,0.56119002]
[1771647527089,0.55064802,1957.6,1956.8,0.56119002]
[1771647527286,0.55064802,1957.6,1956.8,0.56678157]
[1771647531891,0.55064802,1957.4,1956.8,0.56678157]
[1771647532292,0.55064802,1957.6,1957.0,0.56119002]
[1771647534493,0.55064802,1957.4,1956.8,0.56678157]
[1771647537300,0.55064802,1957.3,1956.8,0.56678157]
[1771647539604,0.55064802,1957.3,1956.8,0.00559155]
[1771647540094,0.55064802,1957.3,1956.8,0.56678157]
[1771647541100,0.55064802,1957.3,1956.8,0.00559155]
[1771647541401,0.55064802,1957.3,1956.8,0.56678157]
[1771647548810,0.5578937,1957.6,1957.2,0.56570394]
[1771647549008,0.5578937,1957.6,1956.9,1.67179927]
[1771647549213,0.5578937,1957.6,1957.0,0.56570394]
[1771647549810,0.5578937,1957.6,1957.2,0.56570394]
[1771647551313,0.5578937,1957.8,1957.2,0.56570394]
[1771647553216,0.5578937,1957.9,1957.4,0.56570394]
[1771647553518,0.5578937,1958.1,1957.4,0.56570394]
[1771647554817,0.5578937,1958.1,1957.6,0.56570394]
[1771647555517,0.00597357,1958.2,1957.6,0.56570394]
[1771647555813,0.56386727,1958.2,1957.6,0.56570394]
[1771647563220,0.00597357,1958.2,1957.7,0.56570394]
[1771647563922,0.00081147,1958.2,1957.9,0.56570394]
[1771647564121,0.5578937,1958.4,1957.9,0.56570394]
[1771647565121,0.56322255,1958.4,1957.9,0.56570394]
[1771647585537,0.00532885,1958.4,1958.0,0.5704827]
[1771647585735,0.55037602,1958.6,1958.0,0.5704827]
[1771647586637,0.55680098,1958.6,1958.0,0.5704827]
[1771647593241,0.55037602,1958.4,1958.0,0.5704827]
[1771647606861,0.55037602,1958.4,1957.6,8.02643677]
[1771647607062,0.55037602,1958.4,1957.9,0.5704827]
[1771647612865,0.58195117,1958.2,1957.7,0.54557463]
[1771647613064,0.58195117,1958.2,1957.6,0.54557463]
[1771647613266,0.58195117,1958.2,1957.1,8.02643677]
[1771647613466,0.58195117,1958.2,1957.2,0.54557463]
[1771647613766,0.58195117,1957.8,1956.9,0.54557463]
[1771647625568,4.26234532,1958.3,1957.6,0.54557463]
[1771647625569,4.84429649,1958.3,1957.6,0.54557463]
[1771647625769,0.00642496,1958.6,1957.6,0.54557463]
[1771647625970,0.58195117,1958.5,1957.6,0.54557463]
[1771647626571,0.58837613,1958.6,1957.9,0.54557463]
[1771647626773,0.00642496,1958.6,1957.9,0.54557463]
[1771647627178,0.58195117,1958.8,1957.9,0.54557463]
[1771647628274,0.58569466,1958.8,1957.9,0.54557463]
[1771647642184,0.54988767,1958.6,1957.6,0.5848395]
[1771647653985,0.54988767,1958.5,1957.7,0.5848395]
[1771647660292,0.54988767,1958.3,1957.7,0.5848395]
[1771647661595,0.54988767,1958.5,1957.7,0.5848395]
[1771647664394,0.54988767,1958.3,1957.7,0.5848395]
[1771647666396,0.54988767,1958.5,1957.7,0.5848395]
[1771647666601,6.29300923,1958.4,1957.7,0.5848395]
[1771647666802,0.54988767,1958.4,1957.7,0.5848395]
[1771647676204,1.66994455,1958.4,1957.7,0.5848395]
[1771647676409,0.5477632,1958.3,1957.7,0.5848395]
[1771647687123,0.5477632,1958.5,1957.9,0.56643501]
[1771647687318,5.74636202,1958.4,1957.9,0.56643501]
[1771647687518,0.5477632,1958.5,1957.9,0.56643501]
[1771647687818,5.74646951,1958.4,1957.9,0.56643501]
[1771647688017,0.5477632,1958.5,1957.9,0.56643501]
[1771647688216,5.74646745,1958.4,1957.9,0.56643501]
[1771647688420,0.5477632,1958.5,1957.9,0.56643501]
[1771647688621,5.7464686,1958.4,1957.9,0.56643501]
[1771647688821,0.5477632,1958.5,1957.9,0.56643501]
[1771647689123,6.29423217,1958.4,1957.9,0.56643501]
[1771647689319,0.5477632,1958.4,1957.9,0.56643501]
[1771647691829,0.5477632,1958.3,1957.7,0.56643501]
[1771647692029,0.5477632,1958.2,1957.7,0.56643501]
[1771647694229,0.5477632,1958.2,1957.6,0.56643501]
[1771647697134,2.21770775,1958.4,1957.7,0.56643501]
[1771647697331,6.3551278,1958.3,1957.7,0.56643501]
[1771647697535,0.57132282,1958.3,1957.7,0.56643501]
[1771647703238,0.57132282,1958.1,1957.7,0.56643501]
[1771647716050,0.57132282,1958.1,1957.3,8.02643677]
[1771647716051,0.57132282,1958.1,1957.6,0.57165347]
[1771647719849,0.57132282,1957.9,1957.3,0.57165347]
[1771647720850,5.79116792,1957.8,1957.0,1.8837692]
[1771647721046,0.57132282,1957.6,1957.0,1.8837692]
[1771647721545,0.57132282,1957.6,1957.1,0.57165347]
[1771647722651,0.57132282,1957.6,1957.0,0.57165347]
[1771647723552,0.57132282,1957.6,1956.9,0.57165347]
[1771647726552,0.57132282,1957.6,1956.8,0.00559155]
[1771647726752,0.57132282,1957.6,1956.8,0.57724502]
[1771647729462,0.60383024,1957.4,1956.8,0.57724502]
[1771647729757,0.60956097,1957.4,1956.8,0.00559155]
[1771647730158,0.60956097,1957.4,1956.6,0.56690227]
[1771647730454,0.60956097,1957.4,1956.2,1.3053375]
[1771647730455,0.60956097,1957.4,1956.3,0.56690227]
[1771647730658,0.60956097,1957.4,1956.1,0.56690227]
[1771647730659,0.60383024,1957.1,1956.1,0.56690227]
[1771647731262,0.60383024,1957.1,1956.1,0.57151477]
[1771647731460,1.6703393,1957.2,1956.1,0.57151477]
[1771647731461,0.60383024,1956.9,1956.1,0.57151477]
[1771647735565,0.60383024,1957.3,1956.1,0.57151477]
[1771647742564,0.60383024,1957.1,1956.1,0.57151477]
[1771647744063,0.60383024,1956.8,1956.1,0.57151477]
[1771647747874,0.60383024,1957.1,1956.1,0.57151477]
[1771647755178,0.60383024,1956.9,1956.1,0.57151477]
[1771647756180,0.60383024,1957.3,1956.3,0.56690227]
[1771647756776,0.60956097,1957.4,1956.6,0.56690227]
[1771647766787,0.60956097,1957.4,1956.4,0.58968792]
[1771647773896,0.55228592,1957.1,1956.4,0.58968792]
[1771647777798,1.67224345,1957.2,1956.4,0.58968792]
[1771647777799,0.55228592,1957.3,1956.4,0.58968792]
[1771647778000,0.55228592,1957.3,1956.6,0.58968792]
[1771647780199,0.55228592,1957.2,1956.6,0.58968792]
[1771647784404,0.00573073,1957.4,1956.6,0.58968792]
[1771647784405,0.55228592,1957.3,1956.6,0.58968792]
[1771647784802,0.00573073,1957.4,1956.8,0.58968792]
[1771647785003,0.55801665,1957.4,1956.8,0.58968792]
[1771647785401,0.00573073,1957.4,1957.0,0.58968792]
[1771647787302,0.00573073,1957.4,1957.0,2.26193137]
[1771647787507,0.00573073,1957.4,1957.1,0.59842009]
[1771647787705,0.56159447,1957.6,1957.1,0.59842009]
[1771647788804,0.00620551,1957.6,1957.1,0.59842009]
[1771647810223,0.59316002,1958.2,1957.6,0.60276127]
[1771647810725,0.93864072,1958.5,1957.8,0.60276127]
[1771647810726,0.59316002,1958.4,1957.8,0.60276127]
[1771647811223,0.59316002,1958.4,1957.8,0.606885]
[1771647811224,0.59826109,1958.4,1957.8,0.606885]
[1771647815429,0.59316002,1958.1,1957.6,0.60276127]
[1771647816431,0.59316002,1958.1,1957.6,0.60812962]
[1771647819737,0.59316002,1958.1,1957.6,0.00536835]
[1771647820127,0.59316002,1958.1,1957.6,0.55419923]
[1771647822341,0.60076493,1958.3,1957.7,0.54883088]
[1771647831149,0.60076493,1958.3,1957.6,0.55419923]
[1771647831452,0.60076493,1958.1,1957.6,0.55419923]
[1771647833555,0.60076493,1957.9,1957.6,0.55419923]
[1771647835261,0.60076493,1957.9,1957.6,0.00536835]
[1771647837359,0.60076493,1957.9,1957.6,0.55419923]
[1771647842759,0.60076493,1957.9,1957.6,0.00536835]
[1771647843963,0.60076493,1957.9,1957.6,0.55419923]
[1771647844364,0.60076493,1958.2,1957.6,0.55419923]
[1771647880781,0.00510107,1958.4,1957.6,0.55419923]
[1771647880983,6.39312519,1958.3,1957.6,0.55419923]
[1771647881282,0.58745858,1958.3,1957.6,0.55419923]
[1771647883681,0.00510107,1958.4,1957.6,8.580636]
[1771647883984,4.27386154,1958.7,1957.6,8.580636]
[1771647883985,0.58745858,1958.6,1957.9,0.5912829]
[1771647884575,0.58745858,1958.9,1957.9,0.5912829]
[1771647884776,6.39034475,1958.8,1957.9,0.5912829]
[1771647884974,0.59191304,1958.8,1957.9,0.5912829]
[1771647892093,0.59191304,1958.8,1958.2,0.5912829]
[1771647892491,0.58745858,1959.0,1958.2,0.5912829]
[1771647892892,2.62974828,1959.6,1958.2,0.5912829]
[1771647893193,0.58745858,1959.4,1958.2,0.5912829]
[1771647893687,0.59155639,1959.4,1958.2,0.5912829]
[1771647897996,0.59155639,1959.4,1958.7,0.5912829]
[1771647898597,0.59155639,1959.4,1958.8,2.25959141]
[1771647899493,0.59155639,1959.4,1958.9,0.5912829]
[1771647904702,0.59155639,1959.4,1958.8,2.25959141]
[1771647906003,0.59155639,1959.4,1958.8,0.5912829]
[1771647911905,0.00409781,1959.4,1959.1,0.59977154]
[1771647912106,0.00409781,1959.4,1959.1,0.60425236]
[1771647919713,0.58362243,1959.4,1959.1,0.60425236]
[1771647922615,0.00409781,1959.4,1959.1,0.60425236]
[1771647926217,0.58362243,1959.4,1959.1,0.60425236]
[1771647926421,0.58362243,1959.4,1959.1,0.00448082]
[1771647931223,0.58362243,1959.4,1959.1,0.60425236]
[1771647931526,0.58362243,1959.4,1959.1,0.00448082]
[1771647932326,0.58362243,1959.4,1959.1,0.60425236]
[1771647934526,0.00409781,1959.4,1959.1,0.60425236]
[1771647935028,0.58362243,1959.4,1959.1,0.60425236]
[1771647942335,0.00409781,1959.4,1959.1,0.60425236]
[1771647943033,0.56594393,1959.4,1959.1,0.60425236]
[1771647951539,0.00409781,1959.4,1959.1,0.60425236]
[1771647951740,0.56594393,1959.4,1959.1,0.60425236]
[1771647954144,0.56594393,1959.4,1959.1,0.00448082]
[1771647954444,0.56594393,1959.4,1958.8,0.58901379]
[1771647955437,0.56594393,1959.4,1958.8,0.59442037]
[1771647959350,0.56594393,1959.4,1958.9,0.58901379]
[1771647967756,0.56594393,1959.4,1958.8,0.59830648]
[1771647971658,0.00409781,1959.4,1958.8,0.59830648]
[1771647975860,0.58884117,1959.7,1958.9,0.57907238]
[1771647976659,0.59280879,1959.7,1959.0,0.57907238]
[1771647977460,0.00396762,1959.7,1959.0,0.57907238]
[1771647982464,0.00396762,1959.7,1959.0,2.24710371]
[1771647983260,4.27386154,1960.3,1959.4,0.57907238]
[1771647983458,0.58884117,1960.1,1959.4,0.57907238]
[1771647984263,0.5935535,1960.1,1959.4,0.57907238]
[1771647986571,0.00471233,1960.1,1959.4,0.57907238]
[1771647993284,11.83054194,1960.6,1959.7,0.57907238]
[1771647993285,0.58884117,1960.5,1959.7,0.57907238]
[1771647994181,0.59496879,1960.5,1959.7,0.57907238]
[1771648004794,0.00612762,1960.5,1959.7,0.57907238]
[1771648005685,0.59103549,1960.5,1959.7,0.57907238]
[1771648007694,0.00612762,1960.5,1959.7,0.57907238]
[1771648008095,0.59103549,1960.5,1959.7,0.57907238]
[1771648011901,0.59103549,1960.5,1959.4,0.60074355]
[1771648013004,0.58490787,1960.4,1959.4,0.60074355]
[1771648021318,0.58490787,1960.2,1959.4,0.60074355]
[1771648021919,0.58490787,1960.2,1959.5,0.60074355]
[1771648027820,0.00612762,1960.5,1959.5,0.60074355]
[1771648028023,0.59248879,1960.5,1960.1,0.59722968]
[1771648028422,0.59248879,1960.5,1959.9,0.59722968]
[1771648045944,0.59248879,1960.5,1959.7,0.59722968]
[1771648046835,0.59248879,1960.5,1959.9,0.59722968]
[1771648047231,0.59248879,1960.5,1960.1,0.59722968]
[1771648052346,0.59248879,1960.5,1960.2,2.2641269]
[1771648052544,0.59248879,1960.5,1960.2,0.60379716]
[1771648056246,0.00612762,1960.5,1960.2,0.60379716]
[1771648056748,0.59248879,1960.5,1960.2,0.60379716]
[1771648059650,0.00612762,1960.5,1960.2,0.60379716]
[1771648062153,0.59501209,1960.5,1960.2,0.60379716]
[1771648062748,0.59501209,1960.5,1960.2,0.00656748]
[1771648063451,0.59501209,1960.5,1960.2,0.57314619]
[1771648066256,0.00612762,1960.5,1960.2,0.57314619]
[1771648066953,0.59501209,1960.5,1960.2,0.57314619]
[1771648069764,0.59501209,1960.5,1960.2,0.00656748]
[1771648070257,0.59501209,1960.5,1959.9,0.56657871]
[1771648071360,0.59501209,1960.5,1959.9,0.57133497]
[1771648076570,0.59501209,1960.5,1960.1,0.56657871]
[1771648076964,0.00612762,1960.5,1960.1,0.56657871]
[1771648077467,0.58888447,1960.6,1960.1,0.56657871]
[1771648077769,0.58888447,1960.9,1960.1,0.56657871]
[1771648077970,0.58888447,1960.7,1960.1,0.56657871]
[1771648078466,0.59511983,1960.7,1960.1,0.56657871]
[1771648079468,0.59511983,1960.7,1960.3,0.56657871]
[1771648080771,4.86274601,1961.2,1960.5,0.56657871]
[1771648081070,6.38097067,1961.1,1960.5,0.56657871]
[1771648081269,6.38097067,1961.0,1960.5,0.56657871]
[1771648081568,0.58888447,1961.0,1960.5,0.56657871]
[1771648081771,0.59373642,1961.0,1960.5,0.56657871]
[1771648084372,0.59373642,1961.0,1960.2,0.56657871]
[1771648084568,0.59373642,1961.0,1960.0,0.56657871]
[1771648093278,0.5732373,1960.8,1960.0,0.56657871]
[1771648102692,0.5732373,1960.6,1959.9,0.60584516]
[1771648114799,0.5732373,1960.6,1959.9,0.00475626]
[1771648117698,0.57982964,1960.4,1959.9,0.00475626]
[1771648131214,0.57982964,1960.2,1959.9,0.00475626]
[1771648133316,0.57982964,1960.2,1959.4,0.5730793]
[1771648134318,0.57982964,1960.2,1959.4,0.57745461]
[1771648143925,0.57982964,1960.2,1959.7,0.5730793]
[1771648170241,4.27386154,1960.5,1959.7,0.5730793]
[1771648170442,6.39081787,1960.4,1959.7,0.5730793]
[1771648170641,0.58205692,1960.2,1959.7,0.5730793]
[1771648219974,0.58205692,1960.2,1959.5,0.59169107]
[1771648220173,0.55845096,1960.0,1959.5,0.59169107]
[1771648220872,0.55845096,1960.2,1959.5,0.59169107]
[1771648266905,6.39983522,1960.1,1959.5,0.59169107]
[1771648267107,0.59549588,1959.9,1959.4,0.00437531]
[1771648268006,0.59549588,1959.9,1959.2,0.56900496]
[1771648268906,0.59549588,1959.9,1959.2,0.57277089]
[1771648269113,0.57747738,1959.7,1959.2,0.00376593]
[1771648269310,0.57747738,1959.5,1958.7,0.59232265]
[1771648269615,0.57747738,1959.2,1958.8,0.59232265]
[1771648270414,0.58157222,1959.2,1958.8,0.59595811]
[1771648275519,0.57747738,1959.4,1959.0,0.59232265]
[1771648275716,0.57747738,1959.9,1959.2,0.59232265]
[1771648276613,0.58354838,1959.9,1959.2,0.59232265]
[1771648292231,0.57747738,1959.7,1959.2,0.59232265]
[1771648304939,0.57747738,1959.7,1959.0,0.59645922]
[1771648305437,6.38769979,1959.6,1959.0,0.59645922]
[1771648305740,0.57223647,1959.6,1959.0,0.59645922]
[1771648321355,0.57223647,1959.8,1959.4,0.59645922]
[1771648321552,0.57830747,1959.9,1959.4,0.59645922]
[1771648328056,0.006071,1959.9,1959.4,0.59645922]
[1771648328451,0.59802541,1959.9,1959.4,0.59645922]
[1771648337260,0.006071,1959.9,1959.4,0.59645922]
[1771648337755,0.59802541,1959.9,1959.4,0.59645922]
[1771648344474,0.006071,1959.9,1959.4,0.59645922]
[1771648349078,0.59195441,1960.3,1959.4,0.59645922]
[1771648349378,0.59195441,1960.1,1959.4,0.59645922]
[1771648350078,0.59810486,1960.1,1959.4,0.59645922]
[1771648375699,0.59810486,1960.1,1959.5,0.5734635]
[1771648390010,0.59810486,1960.1,1959.7,0.58188441]
[1771648390209,6.61962819,1960.7,1959.9,0.58188441]
[1771648390210,0.55837177,1960.2,1959.9,0.58188441]
[1771648390410,0.54488655,1960.2,1959.9,0.58188441]
[1771648391314,0.54945655,1960.2,1959.9,0.58188441]
[1771648398823,0.00457,1960.2,1959.9,0.58188441]
[1771648413132,0.55837177,1960.4,1959.9,0.58188441]
[1771648413339,0.55837177,1960.6,1960.1,0.58188441]
[1771648414237,0.56420653,1960.6,1960.1,0.58188441]
[1771648415037,0.00583476,1960.6,1960.1,0.58188441]
[1771648416140,0.56420653,1960.6,1960.3,0.58188441]
[1771648416339,0.56420653,1960.6,1960.3,0.58623096]
[1771648417442,0.00583476,1960.6,1960.3,0.58623096]
[1771648428746,0.59102426,1960.9,1960.3,0.58623096]
[1771648429846,0.59714106,1960.9,1960.3,0.58623096]
[1771648442253,0.59714106,1960.9,1960.3,2.25279376]
[1771648442558,0.59714106,1960.9,1960.4,0.57393813]
[1771648453075,0.0061168,1960.9,1960.4,0.57393813]
[1771648453477,0.0061168,1960.9,1960.5,0.56732392]
[1771648456279,0.56349169,1961.3,1960.5,0.56732392]
[1771648456781,0.56349169,1961.3,1960.6,0.56732392]
[1771648457175,0.56349169,1961.4,1960.6,0.56732392]
[1771648457374,0.00422581,1961.3,1960.6,6.96285291]
[1771648457574,0.00422581,1961.3,1960.7,0.56732392]
[1771648458375,10.93251115,1961.5,1960.8,0.56732392]
[1771648458578,10.93251115,1961.5,1960.9,0.56732392]
[1771648459484,10.93861448,1961.5,1960.9,0.56732392]
[1771648460885,11.50210617,1961.5,1960.9,0.56732392]
[1771648461386,10.93861448,1961.5,1960.9,0.56732392]
[1771648462181,0.00610333,1961.5,1960.9,0.56732392]
[1771648462586,0.56349169,1961.9,1961.2,0.56732392]
[1771648463580,0.56945074,1961.9,1961.2,0.56732392]
[1771648467192,0.56945074,1961.9,1961.0,0.56732392]
[1771648467392,0.56945074,1961.9,1960.9,0.56732392]
[1771648470795,0.56945074,1961.9,1960.7,0.56732392]
[1771648471995,0.56349169,1961.7,1960.7,0.56732392]
[1771648481311,0.57760402,1961.5,1960.7,0.56732392]
[1771648489212,0.57760402,1961.3,1960.7,0.56732392]
[1771648498614,0.57760402,1961.3,1960.5,0.59397502]
[1771648498819,0.57760402,1961.1,1960.4,0.59397502]
[1771648500518,0.57760402,1961.1,1960.3,0.00434655]
[1771648500519,0.57760402,1961.5,1960.6,0.59397502]
[1771648508023,0.60053768,1961.8,1960.9,0.58286152]
[1771648508224,0.60053768,1961.6,1960.9,0.58286152]
[1771648509817,0.00595905,1961.9,1960.9,0.58286152]
[1771648510026,0.60649673,1961.9,1961.2,0.58286152]
[1771648511924,0.60649673,1961.9,1961.4,0.58286152]
[1771648520531,0.60649673,1961.9,1961.3,2.24660596]
[1771648520931,0.00595905,1961.9,1961.6,0.58286152]
[1771648521332,0.60649673,1961.9,1961.5,2.24660596]
[1771648521536,0.60649673,1961.9,1961.6,0.58286152]
[1771648521734,0.00595905,1961.9,1961.6,0.58286152]
[1771648534044,0.60053768,1962.2,1961.6,0.58286152]
[1771648534944,0.60567252,1962.2,1961.6,0.58286152]
[1771648536144,5.78185705,1962.1,1961.6,0.58286152]
[1771648536346,0.60053768,1962.1,1961.6,0.58286152]
[1771648536941,0.00513484,1962.2,1961.6,0.58286152]
[1771648537144,0.00513484,1962.2,1961.8,0.58286152]
[1771648537351,0.00513484,1962.2,1961.8,0.58906981]
[1771648537543,0.55395684,1962.2,1961.8,0.58906981]
[1771648537745,0.00513484,1962.2,1962.0,0.58087081]
[1771648539846,0.55395684,1962.2,1961.9,0.58087081]
[1771648541551,0.55395684,1962.2,1961.8,0.00620829]
[1771648543043,0.55395684,1962.2,1961.8,0.5870791]
[1771648544652,0.55395684,1962.2,1961.8,0.00620829]
[1771648544952,0.55395684,1962.2,1961.8,0.5870791]
[1771648548354,0.55395684,1962.2,1961.8,0.00620829]
[1771648548554,0.55395684,1962.2,1961.6,0.58087081]
[1771648549158,0.548822,1962.0,1961.4,0.58087081]
[1771648549557,0.548822,1962.0,1961.4,0.5859191]
[1771648560864,0.548822,1962.1,1961.6,0.58087081]
[1771648562268,0.55395684,1962.2,1961.8,0.58087081]
[1771648562464,0.00513484,1962.2,1961.8,0.58087081]
[1771648562957,0.55395684,1962.2,1961.8,0.58087081]
[1771648563467,0.00513484,1962.2,1961.8,0.58087081]
[1771648564062,4.8246677,1962.6,1961.9,0.58087081]
[1771648564269,6.33956114,1962.5,1961.9,0.58087081]
[1771648564466,0.548822,1962.5,1961.9,0.58087081]
[1771648564970,0.55494735,1962.5,1961.9,0.58087081]
[1771648574777,0.00612535,1962.5,1961.9,0.58087081]
[1771648581382,5.07921096,1963.0,1961.9,0.58087081]
[1771648581575,0.54855526,1962.8,1961.9,0.58087081]
[1771648582587,0.55303952,1962.8,1961.9,0.58087081]
[1771648588190,0.54855526,1962.6,1961.9,0.58087081]
[1771648589589,0.54855526,1962.6,1961.6,0.54418364]
[1771648591094,0.54855526,1962.4,1961.6,0.54418364]
[1771648592396,0.54855526,1962.6,1961.6,0.54418364]
[1771648592695,0.54855526,1962.6,1961.7,0.54418364]
[1771648593985,0.54855526,1962.4,1961.7,0.54418364]
[1771648594990,0.54855526,1962.2,1961.4,0.54923193]
[1771648595194,0.54855526,1962.0,1961.4,0.54923193]
[1771648599998,0.54855526,1962.0,1961.4,0.00504829]
[1771648600300,0.54855526,1962.0,1961.4,0.60316931]
[1771648611600,0.55433096,1962.3,1961.4,0.60316931]
[1771648631620,0.57189939,1962.1,1961.4,0.60316931]
[1771648635731,0.57189939,1962.3,1961.4,0.60316931]
[1771648635932,0.57189939,1962.3,1961.8,0.56053161]
[1771648639031,0.57189939,1962.3,1961.6,0.56053161]
[1771648641235,5.80192702,1962.2,1961.6,0.56053161]
[1771648641535,1.6630955,1962.4,1961.6,0.56053161]
[1771648641536,0.57189939,1962.1,1961.6,0.56053161]
[1771648665253,0.56157464,1961.9,1961.4,0.00504829]
[1771648665654,0.56157464,1961.9,1961.4,0.5941555]
[1771648670356,0.56157464,1961.7,1961.0,2.25220271]
[1771648671347,0.56157464,1961.7,1961.0,2.25643288]
[1771648671860,0.56157464,1961.7,1961.0,0.59333738]
[1771648672060,0.56157464,1961.7,1961.0,0.00423017]
[1771648673762,0.56157464,1961.7,1961.0,0.59333738]
[1771648682365,0.56157464,1961.5,1961.0,0.59333738]
[1771648682559,0.56157464,1961.3,1960.8,0.58910721]
[1771648683668,0.56547719,1961.3,1960.8,0.59396472]
[1771648684070,0.00390255,1961.3,1960.8,0.59396472]
[1771648686671,0.56547719,1961.3,1960.8,0.59396472]
[1771648693180,0.5509787,1961.5,1961.0,0.5924932]
[1771648694379,0.5560884,1961.5,1961.0,0.5924932]
[1771648706887,0.5560884,1961.5,1960.8,0.59735071]
[1771648707088,0.5509787,1961.3,1960.8,0.59735071]
[1771648708188,0.0051097,1961.5,1960.8,0.59735071]
[1771648708387,5.81141293,1961.4,1960.8,0.59735071]
[1771648708589,0.5560884,1961.5,1960.8,0.59735071]
[1771648708890,5.8114115,1961.4,1960.8,0.59735071]
[1771648709091,0.5560884,1961.5,1960.8,0.59735071]
[1771648709390,5.81141502,1961.4,1960.8,0.59735071]
[1771648709593,0.5560884,1961.5,1960.8,0.59735071]
[1771648709791,5.81165305,1961.4,1960.8,0.59735071]
[1771648709990,0.5560884,1961.5,1960.8,0.59735071]
[1771648710194,5.83961721,1961.4,1960.8,0.59735071]
[1771648710387,0.5560884,1961.5,1960.8,0.59735071]
[1771648710587,6.39064227,1961.4,1960.8,0.59735071]
[1771648710787,0.5509787,1961.4,1960.8,0.59735071]
[1771648714092,0.0051097,1961.5,1960.8,0.59735071]
[1771648714289,0.0051097,1961.5,1961.0,0.5924932]
[1771648721700,0.58625766,1961.5,1961.0,0.5924932]
[1771648739015,0.58625766,1961.5,1960.8,0.6029207]
[1771648758035,0.58625766,1961.5,1960.9,0.56134086]
[1771648762537,0.58625766,1961.5,1961.1,0.56134086]
[1771648765843,0.58625766,1961.5,1961.0,2.22578267]
[1771648766341,0.58625766,1961.5,1961.1,0.56134086]
[1771648784653,0.58625766,1961.5,1961.0,0.58617812]
[1771648786254,0.58625766,1961.5,1960.8,2.25547744]
[1771648786755,0.58625766,1961.5,1960.9,0.58617812]
[1771648793557,0.58625766,1961.5,1960.8,0.00485751]
[1771648793858,0.60264815,1961.3,1960.8,0.00485751]
[1771648794056,0.60264815,1961.3,1960.8,0.59103563]
[1771648798661,0.60264815,1961.3,1960.8,0.00485751]
[1771648798861,0.60264815,1960.9,1960.3,0.58617812]
[1771648799862,0.60264815,1960.9,1960.3,0.59023441]
[1771648800263,0.60264815,1960.9,1960.4,0.58617812]
[1771648800465,0.60264815,1961.0,1960.6,0.58617812]
[1771648815184,0.60264815,1961.0,1960.4,0.59155721]
[1771648827089,6.3888775,1960.9,1960.4,0.59155721]
[1771648827290,0.55040555,1960.9,1960.4,0.59155721]
[1771648847198,0.54669932,1960.7,1960.4,0.59155721]
[1771648847399,0.54669932,1960.7,1960.3,0.55671485]
[1771648868911,0.59875682,1961.0,1960.3,0.55671485]
[1771648869115,5.85301941,1960.9,1960.3,0.55671485]
[1771648869319,0.59875682,1961.0,1960.3,0.55671485]
[1771648869514,5.85163277,1960.9,1960.3,0.55671485]
[1771648869715,0.59875682,1961.0,1960.3,0.55671485]
[1771648869914,5.85163257,1960.9,1960.3,0.55671485]
[1771648870115,0.59875682,1961.0,1960.3,0.55671485]
[1771648870312,5.85161352,1960.9,1960.3,0.55671485]
[1771648870511,0.59875682,1961.0,1960.3,0.55671485]
[1771648870712,5.85120463,1960.9,1960.3,0.55671485]
[1771648870914,0.59875682,1961.0,1960.3,0.55671485]
[1771648871216,6.44996159,1960.9,1960.3,0.55671485]
[1771648871414,0.59875682,1960.9,1960.3,0.55671485]
[1771648877116,4.27957145,1961.2,1960.3,0.55671485]
[1771648877321,0.59875682,1961.0,1960.3,0.55671485]
[1771648877621,6.44862821,1960.9,1960.3,0.55671485]
[1771648877822,0.59875682,1960.9,1960.3,0.55671485]
[1771648880021,0.59875682,1960.9,1960.4,0.60321821]
[1771648934870,4.88195852,1961.1,1960.5,1.66542538]
[1771648935171,0.59652767,1961.2,1960.8,0.58188461]
[1771648936373,0.60163737,1961.5,1961.0,0.58188461]
[1771648936566,5.84078245,1961.4,1961.0,0.58188461]
[1771648936770,0.60163737,1961.5,1961.0,0.58188461]
[1771648936970,5.84077534,1961.4,1961.0,0.58188461]
[1771648937272,0.59652767,1961.4,1961.0,0.58188461]
[1771648959793,0.0051097,1961.5,1961.0,0.58188461]
[1771648960589,0.60760148,1961.5,1961.0,0.58188461]
[1771648963094,0.60760148,1961.5,1960.6,0.60347658]
[1771648963295,0.60249178,1961.3,1960.6,0.60347658]